{"text_format":"1","workbook":"xlsx","n_sheets":5,"sheets":["Select","Quali","Baum","Schusszettel A4 hoch","Schusszettel"],"not_rendered":{"charts":0,"images":2,"macros":1,"external_links":0,"defined_names":24,"comments":1,"pivot_tables":0},"unopened":[],"bounds":{"document_bytes":16777216,"sheet_cells":100000,"rows_first":2000,"rows_last":500,"rows_between":2000,"halvings":0,"cell_chars":16384,"cell_head_chars":4096},"cells_cut":0,"cells_raw":0,"read":"whole","date_system":"1900"}

{"sheet":"Select","index":0,"n_rows":18,"n_cols":2,"rows_kept":18,"cut":false,"hidden":false,"merged":[[17,0,17,1]]}
[]
[]
[]
["Veranstaltungstitel","WA3D Sternturnier"]
["Datum","17. Mai 2026"]
["Ort","Luftenberg"]
[]
[]
["variables Feld","Inhalt"]
["Bogenklasse 1","Langbogen Damen"]
["Bogenklasse 2","Langbogen Herrn"]
[]
[]
[]
[]
[]
[]
["Exceldatei mit Makros zur Durchführung eines WA3D Halbfinales und Finales der besten 4 eines Turniers. 2 Finale können mit einer Datei durchgeführt werden.\n\nDie Felder oben ausfüllen, die Inahlte übertragen sich auf die nächsten Blätter.\n\nBlatt Quali die FinalteilnehmerInnen eintragen. Ein eventuelles Stechen kann hier auch eingetrage werden. Mit dem Button sortieren die Reihenfolge bei Bedarf aktualisieren.\n\nIm Blatt Baum werden die 4 FinalteilnehmerInnen automatisch von Quali übernommen. Wenn man anschließend die Ergebnisse einträgt, springen die Sieger automatisch ins Goldfinale, die Verlierer ins Bronze-Finale. Die Ergebnisse dieser Paarungen ergeben das Ergebnis.\n\nDie Schusszettel werden ebenfalls automatisch mit den Namen usw. ausgefüllt."]

{"sheet":"Quali","index":1,"n_rows":31,"n_cols":9,"rows_kept":31,"cut":false,"hidden":false,"merged":[[20,0,20,3],[1,0,1,3],[2,0,2,3],[4,0,4,3],[6,0,6,3]]}
[]
[{"$f":"Select!$B$4","v":"WA3D Sternturnier"}]
[{"$f":"Select!$B$5","v":"17. Mai 2026"}]
[]
["Qualifikationsrunde"]
[]
[{"$f":"Select!B10","v":"Langbogen Damen"}]
[]
["Pl.","Start-Nr.","Name","Verein","Land","11er","10er","Ringe","St."]
[{"$f":"IF(C10>\"\",1,\"\")","v":1},"4C","R_Starter 1","R_Verein 1","RL1",4,11,189]
[{"$f":"IF(C11>\"\",2,\"\")","v":2},"5C","R_Starter 2","R_Verein 2","RL2",2,14,188]
[{"$f":"IF(C12>\"\",3,\"\")","v":3},"5B","R_Starter 3","R_Verein 3","RL3",5,12,187]
[{"$f":"IF(C13>\"\",4,\"\")","v":4},"6A","R_Starter 4","R_Verein 4","RL4",2,9,185,"10*"]
[{"$f":"IF(C14>\"\",5,\"\")","v":5},"4A","R_Starter 5","R_Verein 5","RL5",2,7,185,10]
[{"$f":"IF(C15>\"\",6,\"\")","v":""}]
[{"$f":"IF(C16>\"\",7,\"\")","v":""},"","","",""]
[{"$f":"IF(C17>\"\",8,\"\")","v":""},"","","",""]
[]
[]
[]
[{"$f":"Select!$B$11","v":"Langbogen Herrn"}]
[]
["Pl.","Start-Nr.","Name","Verein","Land","11er","10er","Ringe","St."]
[{"$f":"IF(C24>\"\",1,\"\")","v":1},"4C","C_Starter 1","C_Verein 1","CL1",9,14,188]
[{"$f":"IF(C25>\"\",2,\"\")","v":2},"5C","C_Starter 2","C_Verein 2","CL2",5,12,185]
[{"$f":"IF(C26>\"\",3,\"\")","v":3},"5B","C_Starter 3","C_Verein 3","CL3",6,3,184]
[{"$f":"IF(C27>\"\",4,\"\")","v":4},"6A","C_Starter 4","C_Verein 4","CL4",7,7,179,"11*"]
[{"$f":"IF(C28>\"\",5,\"\")","v":5},"6C","C_Starter 5","C_Verein 5","CL5",7,6,179,11]
[{"$f":"IF(C29>\"\",6,\"\")","v":""}]
[{"$f":"IF(C30>\"\",7,\"\")","v":""}]
[{"$f":"IF(C31>\"\",8,\"\")","v":""},"","","",""]

{"sheet":"Baum","index":2,"n_rows":64,"n_cols":14,"rows_kept":64,"cut":false,"hidden":false,"merged":[[0,0,0,3],[33,0,33,3],[1,0,1,3],[34,0,34,3],[13,7,14,7],[17,7,18,7],[19,7,20,7],[11,7,12,7],[5,1,6,1],[7,1,8,1],[23,1,24,1],[25,1,26,1],[61,2,62,3],[26,8,27,9],[28,2,29,3],[44,9,45,9],[46,9,47,9],[50,7,51,7],[52,7,53,7],[50,9,51,9],[52,9,53,9],[44,7,45,7],[46,7,47,7],[38,8,38,9],[39,8,39,9],[40,8,40,9],[38,1,39,1],[40,1,41,1],[56,1,57,1],[58,1,59,1],[2,7,2,9],[35,7,35,9],[11,9,12,9],[13,9,14,9],[17,9,18,9],[19,9,20,9],[59,8,60,9],[4,8,4,9],[5,8,5,9],[6,8,6,9],[7,8,7,9],[37,8,37,9]]}
[{"$f":"Select!B4","v":"WA3D Sternturnier"},null,null,null,null,null,null,null,null,null,null,null,null,"DO NOT DELETE!!!!!"]
[{"$f":"Select!B5","v":"17. Mai 2026"}]
[null,null,null,null,null,null,"Bogenklasse:",{"$f":"Select!$B$10","v":"Langbogen Damen"}]
[]
[null,"Schb","Name","Erg.","Stechen",null,null,"1.",{"$f":"IF($J12+$J14>0,IF($J12>$J14,$I12,IF($J14>$J12,$I14,IF($K12>$K14,$I12,IF($K14>$K12,$I14,IF(RIGHT($K12,1)=\"*\",$I12,IF(RIGHT($K14,1)=\"*\",$I14,\"\")))))),\"\")","v":""}]
[null,"1A",{"$f":"Quali!$C$10","v":"R_Starter 1"},null,null,null,null,"2.",{"$f":"IF($J12+$J14>0,IF($I5=$I12,$I14,$I12),\"\")","v":""}]
[1,null,{"$f":"Quali!$D$10","v":"R_Verein 1"},{"$f":"Quali!$H$10","v":189},null,null,null,"3.",{"$f":"IF($J18+$J20>0,IF($J18>$J20,$I18,IF($J20>$J18,$I20,IF($K18>$K20,$I18,IF($K20>$K18,$I20,IF(RIGHT($J18,1)=\"*\",$I18,IF(RIGHT($J20,1)=\"*\",$I20,\"\")))))),\"\")","v":""}]
[4,"1B",{"$f":"Quali!$C$13","v":"R_Starter 4"},null,null,null,null,"4.",{"$f":"IF($J18+$J20>0,IF($I7=$I18,$I20,$I18),\"\")","v":""}]
[null,null,{"$f":"Quali!$D$13","v":"R_Verein 4"},{"$f":"Quali!$H$13","v":185}]
[]
[null,null,null,null,null,null,null,"Schb","Name","Erg.","Stechen"]
[null,null,null,null,null,null,null,"5A",{"$f":"IF(N12=C6,N12,N14)","v":""},null,null,null,null,{"$f":"IF($D6>$D8,$C6,IF($D8>$D6,$C8,IF($E6>$E8,$C6,IF($E8>$E6,$C8,IF(RIGHT($E6,1)=\"*\",$C6,IF(RIGHT($E8,1)=\"*\",$C8,\"\"))))))","v":""}]
[null,null,null,null,null,"Finale",null,null,{"$f":"IF(N12=C6,N12,N15)","v":" "},null,null,null,null,{"$f":"IF(N12>\" \",IF(N12=C6,C7,C9),\" \")","v":" "}]
[null,null,null,null,null,"1. und 2. Platz",null,"5B",{"$f":"IF(N12=C6,N14,N12)","v":""},null,null,null,null,{"$f":"IF($D24>$D26,$C24,IF($D26>$D24,$C26,IF($E24>$E26,$C24,IF($E26>$E24,$C26,IF(RIGHT($E24,1)=\"*\",$C24,IF(RIGHT($E26,1)=\"*\",$C26,\"\"))))))","v":""}]
[null,null,null,null,null,null,null,null,{"$f":"IF(N12=C6,N14,N13)","v":" "},null,null,null,null,{"$f":"IF(N14>\" \",IF(N14=C24,C25,C27),\" \")","v":" "}]
[]
[]
[null,null,null,null,null,null,null,"7A",{"$f":"IF(N18=C6,N18,N20)","v":" "},null,null,null,null,{"$f":"IF(N12>\" \",IF(N12=C6,C8,C6),\" \")","v":" "}]
[null,null,null,null,null,"Finale",null,null,{"$f":"IF(N18=C6,N18,N21)","v":" "},null,null,null,null,{"$f":"IF(N12>\" \",IF(N18=C6,C7,C9),\" \")","v":" "}]
[null,null,null,null,null,"3. und 4. Platz",null,"7B",{"$f":"IF(N18=C6,N20,N18)","v":" "},null,null,null,null,{"$f":"IF(N14>\" \",IF(N14=C24,C26,C24),\" \")","v":" "}]
[null,null,null,null,null,null,null,null,{"$f":"IF(N18=C6,N20,N19)","v":" "},null,null,null,null,{"$f":"IF(N14>\" \",IF(N20=C24,C25,C27),\" \")","v":" "}]
[]
[]
[null,"3A",{"$f":"Quali!$C$12","v":"R_Starter 3"}]
[2,null,{"$f":"Quali!$D$12","v":"R_Verein 3"},{"$f":"Quali!$H$11","v":188}]
[3,"3B",{"$f":"Quali!$C$11","v":"R_Starter 2"}]
[null,null,{"$f":"Quali!$D$11","v":"R_Verein 2"},{"$f":"Quali!$H$12","v":187},null,null,null,null,"Finale"]
[]
[null,null,"1/2 Finale"]
[]
[null,null,null,null,null,null,null,"*","= näher zum Zentrum"]
[]
[]
[{"$f":"Select!B4","v":"WA3D Sternturnier"}]
[{"$f":"Select!B5","v":"17. Mai 2026"}]
[null,null,null,null,null,null,"Bogenklasse:",{"$f":"Select!$B$11","v":"Langbogen Herrn"}]
[]
[null,"Schb","Name","Erg.","Stechen",null,null,"1.",{"$f":"IF($J45+$J47>0,IF($J45>$J47,$I45,IF($J47>$J45,$I47,IF($K45>$K47,$I45,IF($K47>$K45,$I47,IF(RIGHT($K45,1)=\"*\",$I45,IF(RIGHT($K47,1)=\"*\",$I47,\"\")))))),\"\")","v":""}]
[null,"5A",{"$f":"Quali!$C$24","v":"C_Starter 1"},null,null,null,null,"2.",{"$f":"IF($J45+$J47>0,IF($I38=$I45,$I47,$I45),\"\")","v":""}]
[1,null,{"$f":"Quali!$D$24","v":"C_Verein 1"},{"$f":"Quali!$H$24","v":188},null,null,null,"3.",{"$f":"IF($J51+$J53>0,IF($J51>$J53,$I51,IF($J53>$J51,$I53,IF($K51>$K53,$I51,IF($K53>$K51,$I53,IF(RIGHT($J51,1)=\"*\",$I51,IF(RIGHT($J53,1)=\"*\",$I53,\"\")))))),\"\")","v":""}]
[4,"5B",{"$f":"Quali!$C$27","v":"C_Starter 4"},null,null,null,null,"4.",{"$f":"IF($J51+$J53>0,IF($I40=$I51,$I53,$I51),\"\")","v":""}]
[null,null,{"$f":"Quali!$D$27","v":"C_Verein 4"},{"$f":"Quali!$H$27","v":179}]
[]
[null,null,null,null,null,null,null,"Schb","Name","Erg.","Stechen"]
[null,null,null,null,null,null,null,"1A",{"$f":"IF(N45=C39,N45,N47)","v":""},null,null,null,null,{"$f":"IF($D39>$D41,$C39,IF($D41>$D39,$C41,IF($E39>$E41,$C39,IF($E41>$E39,$C41,IF(RIGHT($E39,1)=\"*\",$C39,IF(RIGHT($E41,1)=\"*\",$C41,\"\"))))))","v":""}]
[null,null,null,null,null,"Finale",null,null,{"$f":"IF(N45=C39,N45,N48)","v":" "},null,null,null,null,{"$f":"IF(N45>\" \",IF(N45=C39,C40,C42),\" \")","v":" "}]
[null,null,null,null,null,"1. und 2. Platz",null,"1B",{"$f":"IF(N45=C39,N47,N45)","v":""},null,null,null,null,{"$f":"IF($D57>$D59,$C57,IF($D59>$D57,$C59,IF($E57>$E59,$C57,IF($E59>$E57,$C59,IF(RIGHT($E57,1)=\"*\",$C57,IF(RIGHT($E59,1)=\"*\",$C59,\"\"))))))","v":""}]
[null,null,null,null,null,null,null,null,{"$f":"IF(N45=C39,N47,N46)","v":" "},null,null,null,null,{"$f":"IF(N47>\" \",IF(N47=C57,C58,C60),\" \")","v":" "}]
[]
[]
[null,null,null,null,null,null,null,"3A",{"$f":"IF(N51=C39,N51,N53)","v":" "},null,null,null,null,{"$f":"IF(N45>\" \",IF(N45=C39,C41,C39),\" \")","v":" "}]
[null,null,null,null,null,"Finale",null,null,{"$f":"IF(N51=C39,N51,N54)","v":" "},null,null,null,null,{"$f":"IF(N45>\" \",IF(N51=C39,C40,C42),\" \")","v":" "}]
[null,null,null,null,null,"3. und 4. Platz",null,"3B",{"$f":"IF(N51=C39,N53,N51)","v":" "},null,null,null,null,{"$f":"IF(N47>\" \",IF(N47=C57,C59,C57),\" \")","v":" "}]
[null,null,null,null,null,null,null,null,{"$f":"IF(N51=C39,N53,N52)","v":" "},null,null,null,null,{"$f":"IF(N47>\" \",IF(N53=C57,C58,C60),\" \")","v":" "}]
[]
[]
[null,"7A",{"$f":"Quali!$C$26","v":"C_Starter 3"}]
[2,null,{"$f":"Quali!$D$26","v":"C_Verein 3"},{"$f":"Quali!$H$25","v":185}]
[3,"7B",{"$f":"Quali!$C$25","v":"C_Starter 2"}]
[null,null,{"$f":"Quali!$D$25","v":"C_Verein 2"},{"$f":"Quali!$H$26","v":184},null,null,null,null,"Finale"]
[]
[null,null,"1/2 Finale"]
[]
[null,null,null,null,null,null,null,"*","= näher zum Zentrum"]

{"sheet":"Schusszettel A4 hoch","index":3,"n_rows":97,"n_cols":21,"rows_kept":97,"cut":false,"hidden":true,"merged":[[1,4,1,17],[26,4,26,17],[50,4,50,17],[84,8,84,9],[84,19,84,20],[3,8,3,12],[28,8,28,12],[52,8,52,12],[77,8,77,12],[75,4,75,17],[59,8,59,9],[59,19,59,20],[35,8,35,9],[35,19,35,20],[10,8,10,9],[10,19,10,20]]}
[]
[null,null,null,null,{"$f":"Select!$B$4","v":"WA3D Sternturnier"}]
[null,null,null,null,null,null,null,null,null,null,null,null,null,null,null,null,null,null,null,null,{"$f":"Select!$B$5","v":"17. Mai 2026"}]
[null,{"$f":"Select!$B$10","v":"Langbogen Damen"},null,null,null,null,null,null,"Semi-Finale",null,null,null,null,null,null,null,null,null,null,null,{"$f":"Select!$B$6","v":"Luftenberg"}]
[null,"Bogenklasse"]
[]
[null,"Name",null,null,null,null,null,null,null,null,null,null,"Name"]
[]
[null,"Verein",null,null,null,null,null,null,null,null,null,null,"Verein"]
[]
[null,"Target",11,10,8,5,"M","Wert","Ges.",null,null,null,"Target",11,10,8,5,"M","Wert","Ges."]
[null,1,11,10,8,5,"M",null,null,null,null,null,1,11,10,8,5,"M"]
[null,2,11,10,8,5,"M",null,null,null,null,null,2,11,10,8,5,"M"]
[null,3,11,10,8,5,"M",null,null,null,null,null,3,11,10,8,5,"M"]
[null,4,11,10,8,5,"M",null,null,null,null,null,4,11,10,8,5,"M"]
[null,"wenn erforderlich",null,null,null,null,null,null,null,null,null,null,"wenn erforderlich"]
[null,"Stechen",11,10,8,5,"M",null,null,null,null,null,"Stechen",11,10,8,5,"M"]
[]
[null,null,null,null,null,null,null,null,"gewonnen",null,null,null,null,null,null,null,null,null,null,"gewonnen"]
[]
[null,"Schütze:",null,null,null,null,null,null,null,null,null,null,"Schütze:"]
[]
[null,null,null,null,null,null,"Schreiber:"]
[]
[]
[]
[null,null,null,null,{"$f":"Select!$B$4","v":"WA3D Sternturnier"}]
[null,null,null,null,null,null,null,null,null,null,null,null,null,null,null,null,null,null,null,null,{"$f":"Select!$B$5","v":"17. Mai 2026"}]
[null,{"$f":"Select!$B$10","v":"Langbogen Damen"},null,null,null,null,null,null,"Semi-Finale",null,null,null,null,null,null,null,null,null,null,null,{"$f":"Select!$B$6","v":"Luftenberg"}]
[null,"Bogenklasse"]
[]
[null,"Name",null,null,null,null,null,null,null,null,null,null,"Name"]
[]
[null,"Verein",null,null,null,null,null,null,null,null,null,null,"Verein"]
[]
[null,"Target",11,10,8,5,"M","Wert","Ges.",null,null,null,"Target",11,10,8,5,"M","Wert","Ges."]
[null,1,11,10,8,5,"M",null,null,null,null,null,1,11,10,8,5,"M"]
[null,2,11,10,8,5,"M",null,null,null,null,null,2,11,10,8,5,"M"]
[null,3,11,10,8,5,"M",null,null,null,null,null,3,11,10,8,5,"M"]
[null,4,11,10,8,5,"M",null,null,null,null,null,4,11,10,8,5,"M"]
[null,"wenn erforderlich",null,null,null,null,null,null,null,null,null,null,"wenn erforderlich"]
[null,"Stechen",11,10,8,5,"M",null,null,null,null,null,"Stechen",11,10,8,5,"M"]
[]
[null,null,null,null,null,null,null,null,"gewonnen",null,null,null,null,null,null,null,null,null,null,"gewonnen"]
[]
[null,"Schütze:",null,null,null,null,null,null,null,null,null,null,"Schütze:"]
[]
[null,null,null,null,null,null,"Schreiber:"]
[]
[]
[null,null,null,null,{"$f":"Select!$B$4","v":"WA3D Sternturnier"}]
[null,null,null,null,null,null,null,null,null,null,null,null,null,null,null,null,null,null,null,null,{"$f":"Select!$B$5","v":"17. Mai 2026"}]
[null,{"$f":"Select!$B$10","v":"Langbogen Damen"},null,null,null,null,null,null,"Bronze-Finale",null,null,null,null,null,null,null,null,null,null,null,{"$f":"Select!$B$6","v":"Luftenberg"}]
[null,"Bogenklasse"]
[]
[null,"Name",null,null,null,null,null,null,null,null,null,null,"Name"]
[]
[null,"Verein",null,null,null,null,null,null,null,null,null,null,"Verein"]
[]
[null,"Target",11,10,8,5,"M","Wert","Ges.",null,null,null,"Target",11,10,8,5,"M","Wert","Ges."]
[null,1,11,10,8,5,"M",null,null,null,null,null,1,11,10,8,5,"M"]
[null,2,11,10,8,5,"M",null,null,null,null,null,2,11,10,8,5,"M"]
[null,3,11,10,8,5,"M",null,null,null,null,null,3,11,10,8,5,"M"]
[null,4,11,10,8,5,"M",null,null,null,null,null,4,11,10,8,5,"M"]
[null,"wenn erforderlich",null,null,null,null,null,null,null,null,null,null,"wenn erforderlich"]
[null,"Stechen",11,10,8,5,"M",null,null,null,null,null,"Stechen",11,10,8,5,"M"]
[]
[null,null,null,null,null,null,null,null,"gewonnen",null,null,null,null,null,null,null,null,null,null,"gewonnen"]
[]
[null,"Schütze:",null,null,null,null,null,null,null,null,null,null,"Schütze:"]
[]
[null,null,null,null,null,null,"Schreiber:"]
[]
[]
[]
[null,null,null,null,{"$f":"Select!$B$4","v":"WA3D Sternturnier"}]
[null,null,null,null,null,null,null,null,null,null,null,null,null,null,null,null,null,null,null,null,{"$f":"Select!$B$5","v":"17. Mai 2026"}]
[null,{"$f":"Select!$B$10","v":"Langbogen Damen"},null,null,null,null,null,null,"Gold-Finale",null,null,null,null,null,null,null,null,null,null,null,{"$f":"Select!$B$6","v":"Luftenberg"}]
[null,"Bogenklasse"]
[]
[null,"Name",null,null,null,null,null,null,null,null,null,null,"Name"]
[]
[null,"Verein",null,null,null,null,null,null,null,null,null,null,"Verein"]
[]
[null,"Target",11,10,8,5,"M","Wert","Ges.",null,null,null,"Target",11,10,8,5,"M","Wert","Ges."]
[null,1,11,10,8,5,"M",null,null,null,null,null,1,11,10,8,5,"M"]
[null,2,11,10,8,5,"M",null,null,null,null,null,2,11,10,8,5,"M"]
[null,3,11,10,8,5,"M",null,null,null,null,null,3,11,10,8,5,"M"]
[null,4,11,10,8,5,"M",null,null,null,null,null,4,11,10,8,5,"M"]
[null,"wenn erforderlich",null,null,null,null,null,null,null,null,null,null,"wenn erforderlich"]
[null,"Stechen",11,10,8,5,"M",null,null,null,null,null,"Stechen",11,10,8,5,"M"]
[]
[null,null,null,null,null,null,null,null,"gewonnen",null,null,null,null,null,null,null,null,null,null,"gewonnen"]
[]
[null,"Schütze:",null,null,null,null,null,null,null,null,null,null,"Schütze:"]
[]
[null,null,null,null,null,null,"Schreiber:"]

{"sheet":"Schusszettel","index":4,"n_rows":132,"n_cols":25,"rows_kept":132,"cut":false,"hidden":false,"merged":[[18,24,18,25],[2,24,2,25],[1,20,1,25],[17,20,17,25],[18,10,18,11],[2,10,2,11],[1,6,1,11],[17,6,17,11],[85,6,85,11],[85,20,85,25],[86,10,86,11],[86,24,86,25],[69,6,69,11],[69,20,69,25],[70,10,70,11],[70,24,70,25],[51,6,51,11],[51,20,51,25],[52,10,52,11],[52,24,52,25],[35,6,35,11],[35,20,35,25],[36,10,36,11],[36,24,36,25],[119,6,119,11],[119,20,119,25],[120,10,120,11],[120,24,120,25],[103,6,103,11],[103,20,103,25],[104,10,104,11],[104,24,104,25]]}
[]
[null,null,null,null,null,null,"1/2 Finale",null,null,null,null,null,null,null,null,null,null,null,null,null,"1/2 Finale"]
[null,null,null,null,null,null,"Target",1,2,"Summe","Gesamt",null,null,null,null,null,null,null,null,null,"Target",1,2,"Summe","Gesamt"]
[{"$f":"Select!$B$4","v":"WA3D Sternturnier"},null,null,null,null,null,1,null,null,null,null,null,null,null,{"$f":"Select!$B$4","v":"WA3D Sternturnier"},null,null,null,null,null,1]
["Veranstaltung",null,null,null,null,null,2,null,null,null,null,null,null,null,"Veranstaltung",null,null,null,null,null,2]
[{"$f":"Select!$B$5","v":"17. Mai 2026"},null,null,null,null,null,3,null,null,null,null,null,null,null,{"$f":"Select!$B$5","v":"17. Mai 2026"},null,null,null,null,null,3]
["Datum",null,null,null,null,null,4,null,null,null,null,null,null,null,"Datum",null,null,null,null,null,4]
[null,null,null,null,null,null,"wenn erforderlich",null,null,null,null,null,null,null,null,null,null,null,null,null,"wenn erforderlich"]
[{"$f":"Quali!$C$10","v":"R_Starter 1"},null,null,null,null,null,"Stechen",null,null,null,null,null,null,null,{"$f":"Quali!$C$11","v":"R_Starter 2"},null,null,null,null,null,"Stechen"]
["Name",null,null,null,null,null,null,null,null,null,"gewonnen",null,null,null,"Name",null,null,null,null,null,null,null,null,null,"gewonnen"]
[{"$f":"Quali!$D$10","v":"R_Verein 1"},null,null,null,null,null,"Schütze:",null,null,null,"verloren",null,null,null,{"$f":"Quali!$D$11","v":"R_Verein 2"},null,null,null,null,null,"Schütze:",null,null,null,"verloren"]
["Verein",null,null,null,null,null,null,null,null,null,null,null,null,null,"Verein"]
[null,null,null,null,null,null,"Gegner:","Name:",{"$f":"Baum!C8","v":"R_Starter 4"},null,null,null,null,null,null,null,null,null,null,null,"Gegner:","Name:",{"$f":"Baum!C24","v":"R_Starter 3"}]
[{"$f":"Select!$B$10","v":"Langbogen Damen"},null,null,null,null,null,null,"Unterschrift:",null,null,null,null,null,null,{"$f":"Select!$B$10","v":"Langbogen Damen"},null,null,null,null,null,null,"Unterschrift:"]
["Bogenklasse",null,null,null,null,null,null,null,null,null,null,null,null,null,"Bogenklasse"]
[]
[]
[null,null,null,null,null,null,"1./2. od. 3./4. Platz",null,null,null,null,null,null,null,null,null,null,null,null,null,"1./2. od. 3./4. Platz"]
[null,null,null,null,null,null,"Target",1,2,"Summe","Gesamt",null,null,null,null,null,null,null,null,null,"Target",1,2,"Summe","Gesamt"]
[null,null,null,null,null,null,1,null,null,null,null,null,null,null,null,null,null,null,null,null,1]
[null,null,null,null,null,null,2,null,null,null,null,null,null,null,null,null,null,null,null,null,2]
[null,null,null,null,null,null,3,null,null,null,null,null,null,null,null,null,null,null,null,null,3]
[null,null,null,null,null,null,4,null,null,null,null,null,null,null,null,null,null,null,null,null,4]
[null,null,null,null,null,null,"wenn erforderlich",null,null,null,null,null,null,null,null,null,null,null,null,null,"wenn erforderlich"]
[null,null,null,null,null,null,"Stechen",null,null,null,null,null,null,null,null,null,null,null,null,null,"Stechen"]
[null,null,null,null,null,null,null,null,null,null,"gewonnen",null,null,null,null,null,null,null,null,null,null,null,null,null,"gewonnen"]
[null,null,null,null,null,null,"Schütze:",null,null,null,"verloren",null,null,null,null,null,null,null,null,null,"Schütze:",null,null,null,"verloren"]
[]
[null,null,null,null,null,null,"Gegner:","Name:",null,null,null,null,null,null,null,null,null,null,null,null,"Gegner:","Name:"]
[null,null,null,null,null,null,null,"Unterschrift:",null,null,null,null,null,null,null,null,null,null,null,null,null,"Unterschrift:"]
[]
[]
[]
[]
[]
[null,null,null,null,null,null,"1/2 Finale",null,null,null,null,null,null,null,null,null,null,null,null,null,"1/2 Finale"]
[null,null,null,null,null,null,"Target",1,2,"Summe","Gesamt",null,null,null,null,null,null,null,null,null,"Target",1,2,"Summe","Gesamt"]
[{"$f":"Select!$B$4","v":"WA3D Sternturnier"},null,null,null,null,null,1,null,null,null,null,null,null,null,{"$f":"Select!$B$4","v":"WA3D Sternturnier"},null,null,null,null,null,1]
["Veranstaltung",null,null,null,null,null,2,null,null,null,null,null,null,null,"Veranstaltung",null,null,null,null,null,2]
[{"$f":"Select!$B$5","v":"17. Mai 2026"},null,null,null,null,null,3,null,null,null,null,null,null,null,{"$f":"Select!$B$5","v":"17. Mai 2026"},null,null,null,null,null,3]
["Datum",null,null,null,null,null,4,null,null,null,null,null,null,null,"Datum",null,null,null,null,null,4]
[null,null,null,null,null,null,"wenn erforderlich",null,null,null,null,null,null,null,null,null,null,null,null,null,"wenn erforderlich"]
[{"$f":"Quali!$C$12","v":"R_Starter 3"},null,null,null,null,null,"Stechen",null,null,null,null,null,null,null,{"$f":"Quali!$C$13","v":"R_Starter 4"},null,null,null,null,null,"Stechen"]
["Name",null,null,null,null,null,null,null,null,null,"gewonnen",null,null,null,"Name",null,null,null,null,null,null,null,null,null,"gewonnen"]
[{"$f":"Quali!$D$12","v":"R_Verein 3"},null,null,null,null,null,"Schütze:",null,null,null,"verloren",null,null,null,{"$f":"Quali!$D$13","v":"R_Verein 4"},null,null,null,null,null,"Schütze:",null,null,null,"verloren"]
["Verein",null,null,null,null,null,null,null,null,null,null,null,null,null,"Verein"]
[null,null,null,null,null,null,"Gegner:","Name:",{"$f":"Baum!C26","v":"R_Starter 2"},null,null,null,null,null,null,null,null,null,null,null,"Gegner:","Name:",{"$f":"Baum!C6","v":"R_Starter 1"}]
[{"$f":"Select!$B$10","v":"Langbogen Damen"},null,null,null,null,null,null,"Unterschrift:",null,null,null,null,null,null,{"$f":"Select!$B$10","v":"Langbogen Damen"},null,null,null,null,null,null,"Unterschrift:"]
["Bogenklasse",null,null,null,null,null,null,null,null,null,null,null,null,null,"Bogenklasse"]
[]
[]
[null,null,null,null,null,null,"1./2. od. 3./4. Platz",null,null,null,null,null,null,null,null,null,null,null,null,null,"1./2. od. 3./4. Platz"]
[null,null,null,null,null,null,"Target",1,2,"Summe","Gesamt",null,null,null,null,null,null,null,null,null,"Target",1,2,"Summe","Gesamt"]
[null,null,null,null,null,null,1,null,null,null,null,null,null,null,null,null,null,null,null,null,1]
[null,null,null,null,null,null,2,null,null,null,null,null,null,null,null,null,null,null,null,null,2]
[null,null,null,null,null,null,3,null,null,null,null,null,null,null,null,null,null,null,null,null,3]
[null,null,null,null,null,null,4,null,null,null,null,null,null,null,null,null,null,null,null,null,4]
[null,null,null,null,null,null,"wenn erforderlich",null,null,null,null,null,null,null,null,null,null,null,null,null,"wenn erforderlich"]
[null,null,null,null,null,null,"Stechen",null,null,null,null,null,null,null,null,null,null,null,null,null,"Stechen"]
[null,null,null,null,null,null,null,null,null,null,"gewonnen",null,null,null,null,null,null,null,null,null,null,null,null,null,"gewonnen"]
[null,null,null,null,null,null,"Schütze:",null,null,null,"verloren",null,null,null,null,null,null,null,null,null,"Schütze:",null,null,null,"verloren"]
[]
[null,null,null,null,null,null,"Gegner:","Name:",null,null,null,null,null,null,null,null,null,null,null,null,"Gegner:","Name:"]
[null,null,null,null,null,null,null,"Unterschrift:",null,null,null,null,null,null,null,null,null,null,null,null,null,"Unterschrift:"]
[]
[]
[]
[]
[]
[null,null,null,null,null,null,"1/2 Finale",null,null,null,null,null,null,null,null,null,null,null,null,null,"1/2 Finale"]
[null,null,null,null,null,null,"Target",1,2,"Summe","Gesamt",null,null,null,null,null,null,null,null,null,"Target",1,2,"Summe","Gesamt"]
[{"$f":"Select!$B$4","v":"WA3D Sternturnier"},null,null,null,null,null,1,null,null,null,null,null,null,null,{"$f":"Select!$B$4","v":"WA3D Sternturnier"},null,null,null,null,null,1]
["Veranstaltung",null,null,null,null,null,2,null,null,null,null,null,null,null,"Veranstaltung",null,null,null,null,null,2]
[{"$f":"Select!$B$5","v":"17. Mai 2026"},null,null,null,null,null,3,null,null,null,null,null,null,null,{"$f":"Select!$B$5","v":"17. Mai 2026"},null,null,null,null,null,3]
["Datum",null,null,null,null,null,4,null,null,null,null,null,null,null,"Datum",null,null,null,null,null,4]
[null,null,null,null,null,null,"wenn erforderlich",null,null,null,null,null,null,null,null,null,null,null,null,null,"wenn erforderlich"]
[{"$f":"Quali!$C$24","v":"C_Starter 1"},null,null,null,null,null,"Stechen",null,null,null,null,null,null,null,{"$f":"Quali!$C$25","v":"C_Starter 2"},null,null,null,null,null,"Stechen"]
["Name",null,null,null,null,null,null,null,null,null,"gewonnen",null,null,null,"Name",null,null,null,null,null,null,null,null,null,"gewonnen"]
[{"$f":"Quali!$D$24","v":"C_Verein 1"},null,null,null,null,null,"Schütze:",null,null,null,"verloren",null,null,null,{"$f":"Quali!$D$25","v":"C_Verein 2"},null,null,null,null,null,"Schütze:",null,null,null,"verloren"]
["Verein",null,null,null,null,null,null,null,null,null,null,null,null,null,"Verein"]
[null,null,null,null,null,null,"Gegner:","Name:",{"$f":"Baum!C41","v":"C_Starter 4"},null,null,null,null,null,null,null,null,null,null,null,"Gegner:","Name:",{"$f":"Baum!C57","v":"C_Starter 3"}]
[{"$f":"Select!$B$11","v":"Langbogen Herrn"},null,null,null,null,null,null,"Unterschrift:",null,null,null,null,null,null,{"$f":"Select!$B$11","v":"Langbogen Herrn"},null,null,null,null,null,null,"Unterschrift:"]
["Bogenklasse",null,null,null,null,null,null,null,null,null,null,null,null,null,"Bogenklasse"]
[]
[]
[null,null,null,null,null,null,"1./2. od. 3./4. Platz",null,null,null,null,null,null,null,null,null,null,null,null,null,"1./2. od. 3./4. Platz"]
[null,null,null,null,null,null,"Target",1,2,"Summe","Gesamt",null,null,null,null,null,null,null,null,null,"Target",1,2,"Summe","Gesamt"]
[null,null,null,null,null,null,1,null,null,null,null,null,null,null,null,null,null,null,null,null,1]
[null,null,null,null,null,null,2,null,null,null,null,null,null,null,null,null,null,null,null,null,2]
[null,null,null,null,null,null,3,null,null,null,null,null,null,null,null,null,null,null,null,null,3]
[null,null,null,null,null,null,4,null,null,null,null,null,null,null,null,null,null,null,null,null,4]
[null,null,null,null,null,null,"wenn erforderlich",null,null,null,null,null,null,null,null,null,null,null,null,null,"wenn erforderlich"]
[null,null,null,null,null,null,"Stechen",null,null,null,null,null,null,null,null,null,null,null,null,null,"Stechen"]
[null,null,null,null,null,null,null,null,null,null,"gewonnen",null,null,null,null,null,null,null,null,null,null,null,null,null,"gewonnen"]
[null,null,null,null,null,null,"Schütze:",null,null,null,"verloren",null,null,null,null,null,null,null,null,null,"Schütze:",null,null,null,"verloren"]
[]
[null,null,null,null,null,null,"Gegner:","Name:",null,null,null,null,null,null,null,null,null,null,null,null,"Gegner:","Name:"]
[null,null,null,null,null,null,null,"Unterschrift:",null,null,null,null,null,null,null,null,null,null,null,null,null,"Unterschrift:"]
[]
[]
[]
[]
[]
[null,null,null,null,null,null,"1/2 Finale",null,null,null,null,null,null,null,null,null,null,null,null,null,"1/2 Finale"]
[null,null,null,null,null,null,"Target",1,2,"Summe","Gesamt",null,null,null,null,null,null,null,null,null,"Target",1,2,"Summe","Gesamt"]
[{"$f":"Select!$B$4","v":"WA3D Sternturnier"},null,null,null,null,null,1,null,null,null,null,null,null,null,{"$f":"Select!$B$4","v":"WA3D Sternturnier"},null,null,null,null,null,1]
["Veranstaltung",null,null,null,null,null,2,null,null,null,null,null,null,null,"Veranstaltung",null,null,null,null,null,2]
[{"$f":"Select!$B$5","v":"17. Mai 2026"},null,null,null,null,null,3,null,null,null,null,null,null,null,{"$f":"Select!$B$5","v":"17. Mai 2026"},null,null,null,null,null,3]
["Datum",null,null,null,null,null,4,null,null,null,null,null,null,null,"Datum",null,null,null,null,null,4]
[null,null,null,null,null,null,"wenn erforderlich",null,null,null,null,null,null,null,null,null,null,null,null,null,"wenn erforderlich"]
[{"$f":"Quali!$C$26","v":"C_Starter 3"},null,null,null,null,null,"Stechen",null,null,null,null,null,null,null,{"$f":"Quali!$C$27","v":"C_Starter 4"},null,null,null,null,null,"Stechen"]
["Name",null,null,null,null,null,null,null,null,null,"gewonnen",null,null,null,"Name",null,null,null,null,null,null,null,null,null,"gewonnen"]
[{"$f":"Quali!$D$26","v":"C_Verein 3"},null,null,null,null,null,"Schütze:",null,null,null,"verloren",null,null,null,{"$f":"Quali!$D$27","v":"C_Verein 4"},null,null,null,null,null,"Schütze:",null,null,null,"verloren"]
["Verein",null,null,null,null,null,null,null,null,null,null,null,null,null,"Verein"]
[null,null,null,null,null,null,"Gegner:","Name:",{"$f":"Baum!C59","v":"C_Starter 2"},null,null,null,null,null,null,null,null,null,null,null,"Gegner:","Name:",{"$f":"Baum!C39","v":"C_Starter 1"}]
[{"$f":"Select!$B$11","v":"Langbogen Herrn"},null,null,null,null,null,null,"Unterschrift:",null,null,null,null,null,null,{"$f":"Select!$B$11","v":"Langbogen Herrn"},null,null,null,null,null,null,"Unterschrift:"]
["Bogenklasse",null,null,null,null,null,null,null,null,null,null,null,null,null,"Bogenklasse"]
[]
[]
[null,null,null,null,null,null,"1./2. od. 3./4. Platz",null,null,null,null,null,null,null,null,null,null,null,null,null,"1./2. od. 3./4. Platz"]
[null,null,null,null,null,null,"Target",1,2,"Summe","Gesamt",null,null,null,null,null,null,null,null,null,"Target",1,2,"Summe","Gesamt"]
[null,null,null,null,null,null,1,null,null,null,null,null,null,null,null,null,null,null,null,null,1]
[null,null,null,null,null,null,2,null,null,null,null,null,null,null,null,null,null,null,null,null,2]
[null,null,null,null,null,null,3,null,null,null,null,null,null,null,null,null,null,null,null,null,3]
[null,null,null,null,null,null,4,null,null,null,null,null,null,null,null,null,null,null,null,null,4]
[null,null,null,null,null,null,"wenn erforderlich",null,null,null,null,null,null,null,null,null,null,null,null,null,"wenn erforderlich"]
[null,null,null,null,null,null,"Stechen",null,null,null,null,null,null,null,null,null,null,null,null,null,"Stechen"]
[null,null,null,null,null,null,null,null,null,null,"gewonnen",null,null,null,null,null,null,null,null,null,null,null,null,null,"gewonnen"]
[null,null,null,null,null,null,"Schütze:",null,null,null,"verloren",null,null,null,null,null,null,null,null,null,"Schütze:",null,null,null,"verloren"]
[]
[null,null,null,null,null,null,"Gegner:","Name:",null,null,null,null,null,null,null,null,null,null,null,null,"Gegner:","Name:"]
[null,null,null,null,null,null,null,"Unterschrift:",null,null,null,null,null,null,null,null,null,null,null,null,null,"Unterschrift:"]